bitfinex-derivatives/quotes_ETHF0:USTF0_20210702
["timestamp","ask_amount","ask_price","bid_price","bid_amount"]
[1625194090813,5.96497,2090.6,2089.5,17.43]
[1625194090915,5.96497,2090.6,2090.1,2.20527]
[1625194091128,55.9149,2090.4,2090.1,2.20527]
[1625194091629,55.9149,2090.4,2088.8,0.9551]
[1625194091933,1.0,2090.3,2088.8,0.9551]
[1625194092233,1.0,2090.3,2088.9,17.33]
[1625194092483,1.0,2090.3,2088.9,17.47149378]
[1625194092885,2.20527,2089.5,2089.4,2.20527]
[1625194092989,5.91127,2089.5,2089.4,2.20527]
[1625194094488,58.36927,2089.5,2089.4,2.20527]
[1625194094939,60.57454,2089.5,2088.9,2.20527]
[1625194095491,8.11654,2089.5,2088.9,2.20527]
[1625194096896,8.11654,2089.5,2089.4,4.41054]
[1625194097047,8.11654,2089.5,2088.4,1.96195072]
[1625194097496,8.11654,2089.5,2088.5,0.14152599]
[1625194097596,56.8971,2088.9,2088.5,0.14152599]
[1625194097698,59.7231,2088.9,2088.5,0.14152599]
[1625194097795,59.7231,2088.9,2088.3,0.14153006]
[1625194098197,59.7231,2088.9,2088.2,0.14154111]
[1625194098902,2.20527,2088.4,2088.3,2.20527]
[1625194099005,4.54697,2088.4,2088.3,2.20527]
[1625194101011,6.75224,2088.4,2088.3,2.20527]
[1625194103876,56.28484,2088.4,2088.3,2.20527]
[1625194104276,56.28484,2088.4,2088.1,2.20527]
[1625194104426,56.28484,2088.4,2087.2,1.96310293]
[1625194104731,56.28484,2088.4,2087.1,1.96320136]
[1625194105034,2.20527,2087.7,2087.6,2.20527]
[1625194105132,5.51067,2087.7,2087.6,2.20527]
[1625194105480,59.41447,2087.7,2087.6,2.20527]
[1625194106681,59.41447,2087.7,2087.4,2.20527]
[1625194106980,2.20527,2087.5,2087.4,2.20527]
[1625194107181,2.20527,2087.5,2087.1,2.20527]
[1625194107281,2.20527,2087.5,2086.5,1.96294654]
[1625194107836,2.20527,2087.5,2086.4,1.96149219]
[1625194108287,2.20527,2087.5,2086.5,0.14163059]
[1625194108942,2.20527,2087.5,2086.5,3.61223059]
[1625194109091,2.20527,2087.5,2087.3,2.20527]
[1625194109193,2.20527,2087.5,2087.3,4.63057]
[1625194109490,2.20527,2087.5,2087.3,2.4253]
[1625194110351,2.20527,2087.5,2086.4,1.96029536]
[1625194110492,5.43017,2087.5,2086.2,1.96048279]
[1625194110843,5.43017,2087.5,2086.0,1.96061664]
[1625194111002,2.20527,2086.5,2086.4,2.20527]
[1625194111095,5.02597,2086.5,2086.4,2.20527]
[1625194112698,2.20527,2086.5,2086.4,2.20527]
[1625194113098,4.41054,2086.5,2085.7,4.766]
[1625194113200,6.82514,2086.5,2085.7,4.766]
[1625194113702,6.82514,2086.5,2085.2,3.63730217]
[1625194113703,66.87554,2086.5,2085.3,1.95845889]
[1625194113963,66.87554,2086.5,2085.4,0.14167598]
[1625194114765,66.87554,2086.5,2085.3,0.14167606]
[1625194115119,2.20527,2085.7,2085.6,2.20527]
[1625194115972,2.3397,2087.6,2085.6,2.20527]
[1625194116073,2.3397,2087.6,2085.6,22.98607]
[1625194116726,49.6135,2086.8,2085.6,22.98607]
[1625194116924,2.3397,2087.6,2085.6,22.98607]
[1625194117177,2.20527,2086.3,2086.1,2.20527]
[1625194117277,2.20527,2086.3,2086.1,5.14767]
[1625194118281,52.0448,2087.2,2086.1,5.14767]
[1625194118935,14.4976,2088.2,2086.1,5.14767]
[1625194119182,2.20527,2087.0,2086.9,2.20527]
[1625194119283,2.20527,2087.0,2086.9,4.63737]
[1625194121235,4.41054,2087.0,2086.9,4.63737]
[1625194121335,4.41054,2087.0,2086.9,2.20527]
[1625194121484,4.41054,2087.0,2086.7,2.20527]
[1625194122392,1.0,2087.9,2086.7,2.20527]
[1625194122494,15.4976,2088.2,2086.7,5.62647]
[1625194122593,14.4976,2088.2,2086.7,5.62647]
[1625194122993,14.4976,2088.2,2086.8,17.52]
[1625194123147,2.20527,2088.0,2087.9,2.20527]
[1625194123244,2.20527,2088.0,2087.9,5.41137]
[1625194124748,1.0,2089.3,2087.9,5.41137]
[1625194125199,17.86337,2088.3,2088.2,2.20527]
[1625194125700,2.20527,2088.3,2088.2,2.20527]
[1625194131729,2.20527,2088.3,2087.9,2.20527]
[1625194131830,2.20527,2088.3,2086.9,6.7339]
[1625194131831,4.84457,2088.3,2086.9,5.7339]
[1625194131930,5.0,2088.2,2086.9,4.766]
[1625194132350,5.0,2088.2,2085.8,11.92]
[1625194132452,49.34,2087.4,2085.8,11.92]
[1625194132603,52.5067,2087.4,2085.8,11.92]
[1625194133204,52.5067,2087.4,2086.6,2.20527]
[1625194133305,2.20527,2086.7,2086.6,2.20527]
[1625194136134,5.01157,2086.7,2085.8,4.766]
[1625194136384,5.01157,2086.7,2085.2,20.2647]
[1625194136935,44.8794,2086.1,2085.2,20.2647]
[1625194137040,48.3076,2086.1,2085.2,20.2647]
[1625194137186,48.3076,2086.1,2085.2,4.766]
[1625194137287,50.51287,2086.1,2085.9,2.20527]
[1625194138746,5.63347,2086.1,2085.9,2.20527]
[1625194138895,2.20527,2086.1,2085.9,2.20527]
[1625194140847,1.0,2087.3,2085.9,2.20527]
[1625194140950,49.34,2087.4,2085.9,2.20527]
[1625194141348,2.20527,2086.7,2086.6,2.20527]
[1625194141449,2.20527,2086.7,2086.6,5.59977]
[1625194148532,2.20527,2086.7,2086.6,2.20527]
[1625194148632,4.86057,2086.7,2086.6,2.20527]
[1625194148984,4.86057,2086.7,2085.9,4.766]
[1625194149285,2.20527,2086.2,2086.1,2.20527]
[1625194150585,50.39627,2086.2,2086.1,2.20527]
[1625194151283,52.60154,2086.2,2086.1,2.20527]
[1625194152038,4.41054,2086.2,2086.1,2.20527]
[1625194153038,47.60854,2086.2,2086.1,2.20527]
[1625194155502,1.0,2087.0,2086.1,5.38707]
[1625194155603,1.0,2087.9,2086.1,5.38707]
[1625194156052,1.0,2087.9,2086.1,54.44267]
[1625194156252,1.0,2087.9,2086.1,5.38707]
[1625194156808,6.0,2087.9,2086.1,5.38707]
[1625194157458,2.20527,2086.7,2086.5,2.20527]
[1625194157856,2.20527,2086.7,2086.1,2.20527]
[1625194159409,2.20527,2086.3,2086.1,2.20527]
[1625194160760,2.20527,2086.7,2086.1,2.20527]
[1625194160910,2.20527,2086.7,2086.1,4.96557]
[1625194161419,2.20527,2086.7,2086.6,4.41054]
[1625194161514,2.20527,2086.7,2086.6,7.66514]
[1625194163332,1.0,2087.9,2086.6,7.66514]
[1625194163434,2.20527,2087.5,2087.4,2.20527]
[1625194163537,2.20527,2087.5,2087.4,5.11837]
[1625194165091,1.0,2088.9,2087.4,5.11837]
[1625194165492,2.20527,2088.0,2087.8,2.20527]
[1625194174066,4.65077,2088.0,2087.8,2.20527]
[1625194174620,4.65077,2088.0,2086.6,5.766]
[1625194174721,4.65077,2088.0,2086.6,6.16395507]
[1625194174874,4.65077,2088.0,2086.7,0.14160538]
[1625194175576,2.20527,2087.0,2086.9,2.20527]
[1625194175926,1.07249815,2087.0,2086.9,2.20527]
[1625194176026,1.07249815,2087.0,2086.9,2.3468828]
[1625194177490,1.07249815,2087.0,2086.9,2.20527]
[1625194178242,1.07249815,2087.0,2086.9,2.34689604]
[1625194179296,1.0,2087.6,2086.9,2.34689604]
[1625194179396,15.7912,2088.6,2086.9,11.39064906]
[1625194179494,1.0,2088.3,2086.9,11.39064906]
[1625194179596,2.20527,2088.1,2087.9,2.20527]
[1625194181548,4.41054,2088.1,2087.9,2.20527]
[1625194183701,4.41054,2088.1,2087.7,2.20527]
[1625194183801,4.41054,2088.1,2087.1,1.40416734]
[1625194184102,4.41054,2088.1,2087.2,1.4042607]
[1625194184201,4.41054,2088.1,2087.2,2.25384332]
[1625194184553,4.41054,2088.1,2087.3,0.84957012]
[1625194184753,4.41054,2088.1,2087.3,2.25441439]
[1625194185356,4.41054,2088.1,2087.4,0.84945928]
[1625194185456,4.41054,2088.1,2087.4,4.41375928]
[1625194185557,4.41054,2088.1,2087.7,1.40469245]
[1625194185656,4.41054,2088.1,2088.0,4.41054]
[1625194186055,4.41054,2088.1,2088.0,4.55211729]
[1625194187611,4.41054,2088.1,2088.0,4.41054]
[1625194187964,4.41054,2088.1,2088.0,4.55210217]
[1625194188567,2.20527,2088.1,2088.0,4.55210217]
[1625194188665,1.0,2088.7,2088.0,4.55210217]
[1625194188815,14.6873,2089.3,2088.0,4.55210217]
[1625194188916,15.6873,2089.3,2088.0,4.55210217]
[1625194189028,14.6873,2089.3,2088.1,0.14156086]
[1625194189368,14.6873,2089.3,2088.1,0.84932455]
[1625194189669,2.20527,2089.0,2088.9,2.20527]
[1625194190823,54.7539,2089.6,2088.9,2.20527]
[1625194191524,1.0,2090.2,2088.9,2.20527]
[1625194191624,2.20527,2089.6,2089.5,2.20527]
[1625194191724,2.20527,2089.6,2089.5,5.62047]
[1625194193625,2.20527,2089.6,2089.5,7.82574]
[1625194196790,2.20527,2089.9,2089.5,7.82574]
[1625194197247,2.20527,2089.9,2089.6,53.5508]
[1625194197347,2.20527,2089.9,2089.6,70.9808]
[1625194197748,2.20527,2089.9,2089.8,2.20527]
[1625194198052,2.20527,2090.3,2089.8,2.20527]
[1625194199707,2.20527,2090.3,2090.2,2.20527]
[1625194200015,2.20527,2090.3,2089.8,2.20527]
[1625194200112,5.83957,2090.3,2089.8,2.20527]
[1625194201707,2.20527,2089.9,2089.8,2.20527]
[1625194204114,2.20527,2090.3,2089.8,2.20527]
[1625194205714,2.20527,2090.3,2090.1,2.20527]
[1625194207427,60.0971,2090.2,2090.1,2.20527]
[1625194207727,4.53097,2090.3,2090.1,2.20527]
[1625194208528,2.20527,2090.3,2090.1,2.20527]
[1625194214952,1.73137,2090.3,2090.1,2.20527]
[1625194215208,1.73137,2090.3,2090.2,40.8059]
[1625194215814,1.73137,2090.3,2090.2,2.20527]
[1625194223535,5.48997,2090.3,2090.2,2.20527]
[1625194224105,65.09327,2090.3,2090.2,2.20527]
[1625194225049,65.09327,2090.3,2089.1,1.0]
[1625194225148,65.09327,2090.3,2088.2,15.0264]
[1625194225249,1.0,2090.2,2088.3,1.0]
[1625194225752,1.0,2090.2,2088.2,15.0264]
[1625194225850,1.0,2090.2,2089.8,2.20527]
[1625194225951,65.09327,2090.3,2089.8,2.20527]
[1625194227912,2.20527,2089.9,2089.8,2.20527]
[1625194233878,5.55137,2089.9,2089.8,2.20527]
[1625194235130,5.55137,2089.9,2089.6,2.20527]
[1625194235931,2.20527,2089.7,2089.6,2.20527]
[1625194236031,45.18097,2089.7,2089.6,2.20527]
[1625194238338,2.20527,2089.7,2089.6,2.20527]
[1625194239240,52.72257,2089.7,2089.6,2.20527]
[1625194239896,2.20527,2089.7,2089.6,2.20527]
[1625194243421,4.64917,2089.7,2089.6,2.20527]
[1625194251965,4.64917,2089.7,2089.2,2.20527]
[1625194252064,2.20527,2089.3,2089.2,2.20527]
[1625194252490,2.20527,2089.3,2088.2,16.42759146]
[1625194252642,2.20527,2089.3,2088.0,2.80238292]
[1625194252643,2.20527,2089.3,2088.0,1.40214208]
[1625194252748,3.20527,2089.3,2088.0,1.40214208]
[1625194252942,5.0,2089.2,2088.0,1.40214208]
[1625194253045,8.0367,2089.2,2087.7,4.766]
[1625194253141,40.6284,2087.9,2087.7,4.766]
[1625194253240,43.2482,2087.9,2087.7,4.766]
[1625194253340,43.2482,2087.9,2087.5,17.19897323]
[1625194253491,43.2482,2087.9,2087.3,2.80494645]
[1625194253492,43.2482,2087.9,2087.3,1.40257794]
[1625194253941,43.2482,2087.9,2087.4,0.141596]
[1625194254192,4.41054,2087.5,2087.4,0.141596]
[1625194254342,4.41054,2087.5,2087.2,2.20527]
[1625194254493,4.41054,2087.5,2087.0,3.60833619]
[1625194254593,58.4804,2087.1,2087.0,3.60833619]
[1625194254693,61.6202,2087.1,2087.0,2.20527]
[1625194255494,3.1398,2087.1,2087.0,2.20527]
[1625194256095,5.34507,2087.1,2087.0,2.20527]
[1625194259052,2.20527,2087.1,2087.0,2.20527]
[1625194259252,2.20527,2087.5,2087.0,2.20527]
[1625194259349,2.20527,2087.5,2087.0,4.83667]
[1625194260205,2.20527,2087.1,2087.0,7.04194]
[1625194260653,2.20527,2087.1,2087.0,47.6150513]
[1625194260753,2.20527,2087.5,2087.0,47.6150513]
[1625194260857,1.0,2088.3,2087.0,47.6150513]
[1625194260955,1.0,2088.3,2087.0,66.46696015]
[1625194261067,15.1034,2088.7,2087.0,67.17495962]
[1625194261417,15.1034,2088.7,2087.1,2.81192677]
[1625194261518,15.1034,2088.7,2087.8,59.7877]
[1625194261866,15.1034,2088.7,2087.5,2.5781]
[1625194261967,17.7771,2088.7,2087.5,2.5781]
[1625194262169,2.20527,2087.8,2087.6,2.20527]
[1625194262267,5.44107,2087.8,2087.3,1.40170348]
[1625194262632,5.44107,2087.8,2087.0,2.20527]
[1625194263375,5.0,2087.7,2087.0,2.20527]
[1625194263729,5.0,2087.7,2086.1,1.40245794]
[1625194263879,47.1973,2086.4,2086.1,1.40245794]
[1625194263978,49.9592,2086.4,2086.2,0.14167586]
[1625194264226,52.16447,2086.4,2086.3,2.20527]
[1625194266130,4.96717,2086.4,2086.3,2.20527]
[1625194266231,4.41054,2086.4,2086.3,2.20527]
[1625194266683,4.41054,2086.4,2086.3,2.34693005]
[1625194266985,1.0,2087.4,2086.3,2.34693005]
[1625194267135,14.6353,2087.5,2086.3,2.34693005]
[1625194267461,14.6353,2087.5,2086.4,0.14164558]
[1625194267820,14.6353,2087.5,2086.3,2.20527]
[1625194267917,47.7575,2086.4,2086.3,2.20527]
[1625194268165,52.16804,2086.4,2086.3,2.20527]
[1625194270027,4.41054,2086.4,2086.3,2.20527]
[1625194277646,8.06934,2086.4,2086.3,2.20527]
[1625194279996,4.41054,2086.4,2086.3,2.20527]
[1625194280248,54.9954,2087.1,2086.3,2.20527]
[1625194280698,1.0,2087.4,2086.3,2.20527]
[1625194280799,19.5024,2088.6,2086.3,2.20527]
[1625194280949,14.6353,2087.5,2086.3,2.20527]
[1625194281404,1.0,2088.1,2086.8,1.15]
[1625194281502,1.0,2088.1,2087.3,50.0073]
[1625194281603,14.5024,2088.6,2087.3,52.9503]
[1625194281804,56.7884,2088.8,2087.3,52.9503]
[1625194281904,1.0,2088.7,2087.3,52.9503]
[1625194282258,2.20527,2087.8,2087.6,2.20527]
[1625194283513,2.20527,2087.8,2087.3,2.943]
[1625194283810,2.20527,2087.8,2086.8,3.4764]
[1625194284160,2.20527,2087.8,2086.8,2.3264]
[1625194284262,2.20527,2087.2,2087.1,2.20527]
[1625194285973,3.20527,2087.8,2087.1,2.20527]
[1625194286073,2.20527,2087.8,2087.1,2.20527]
[1625194286175,2.20527,2087.8,2087.1,5.62487]
[1625194286274,2.20527,2087.8,2087.4,2.20527]
[1625194288278,2.20527,2087.5,2087.4,2.20527]
[1625194293406,50.00677,2087.5,2087.4,2.20527]
[1625194294405,2.20527,2087.5,2087.4,2.20527]
[1625194296858,2.20527,2087.8,2087.4,2.20527]
[1625194296963,2.20527,2087.8,2087.4,5.97167]
[1625194298382,2.20527,2087.8,2087.7,2.20527]
[1625194301696,2.20527,2088.1,2087.7,2.20527]
[1625194302445,50.86347,2088.1,2088.0,2.20527]
[1625194302548,50.86347,2088.1,2088.0,4.54157]
[1625194302846,2.20527,2088.1,2088.0,4.54157]
[1625194304100,2.20527,2088.1,2088.0,62.99207]
[1625194304200,2.20527,2088.4,2088.0,62.99207]
[1625194304402,2.20527,2088.4,2088.3,2.20527]
[1625194305101,2.20527,2088.6,2088.3,2.20527]
[1625194305653,2.20527,2088.6,2088.5,47.0031]
[1625194305754,2.20527,2088.6,2088.5,49.4356]
[1625194306410,2.20527,2088.6,2088.5,4.63777]
[1625194307115,2.20527,2088.6,2088.5,2.20527]
[1625194311071,2.20527,2088.6,2088.5,49.91137]
[1625194311672,2.20527,2088.6,2088.5,2.20527]
[1625194313484,2.20527,2088.6,2088.5,46.93007]
[1625194314038,2.20527,2088.6,2088.5,50.58687]
[1625194315549,2.20527,2089.0,2088.5,50.58687]
[1625194316501,2.20527,2089.0,2088.9,2.20527]
[1625194322368,44.05457,2089.0,2088.9,2.20527]
[1625194322780,2.20527,2089.0,2088.9,2.20527]
[1625194322879,2.20527,2089.0,2088.5,2.20527]
[1625194322975,4.86907,2089.0,2088.5,2.20527]
[1625194323891,55.9717,2088.6,2088.5,2.20527]
[1625194323994,55.9717,2088.6,2087.5,1.0]
[1625194323995,55.9717,2088.6,2087.4,1.40081991]
[1625194324092,4.86907,2089.0,2087.4,1.40081991]
[1625194324093,1.0,2088.9,2087.4,1.40081991]
[1625194324541,2.20527,2088.3,2088.2,2.20527]
[1625194325742,2.9107,2088.4,2088.2,2.20527]
[1625194325853,2.6638,2089.0,2088.2,2.20527]
[1625194325952,10.0,2403.0,2088.2,2.20527]
[1625194326055,1.40059712,2092.8,2088.2,2.20527]
[1625194326152,58.2737,2090.2,2088.2,2.20527]
[1625194326251,58.2737,2090.2,2088.4,46.5482]
[1625194326351,15.1887,2089.7,2088.4,46.5482]
[1625194326555,2.20527,2089.0,2088.9,2.20527]
[1625194328261,2.20527,2089.0,2088.9,49.02077]
[1625194328558,2.20527,2089.2,2088.9,49.02077]
[1625194328658,2.20527,2089.2,2088.9,51.69657]
[1625194329411,1.0,2089.7,2088.9,51.69657]
[1625194329512,69.8598,2090.7,2088.9,51.69657]
[1625194329660,15.547,2090.7,2088.9,51.69657]
[1625194329861,1.0,2090.6,2088.9,51.69657]
[1625194330613,17.85177,2090.0,2089.9,2.20527]
[1625194330715,2.20527,2090.0,2089.9,5.81637]
[1625194330964,2.20527,2090.2,2089.9,5.81637]
[1625194332616,2.20527,2090.2,2090.1,2.20527]
[1625194336684,2.20527,2090.2,2090.1,58.36887]
[1625194337333,1.0,2090.8,2090.1,58.36887]
[1625194337438,29.4268,2091.4,2090.1,58.36887]
[1625194337633,30.4268,2091.4,2090.1,58.36887]
[1625194337885,29.4268,2091.4,2090.1,58.36887]
[1625194338340,29.4268,2091.4,2090.1,2.20527]
[1625194338591,2.20527,2090.8,2090.7,2.20527]
[1625194338742,5.78417,2090.8,2090.1,2.20527]
[1625194339201,52.0215,2090.2,2090.1,2.20527]
[1625194340463,62.76027,2090.8,2090.1,2.20527]
[1625194340664,2.20527,2090.2,2090.1,2.20527]
[1625194342685,5.75047,2090.2,2090.1,2.20527]
[1625194343127,5.75047,2090.2,2090.0,2.20527]
[1625194343128,5.75047,2090.2,2089.5,14.3526]
[1625194343228,59.5381,2090.0,2089.5,14.3526]
[1625194343327,59.5381,2090.0,2088.5,1.0]
[1625194343478,1.0,2089.9,2088.3,1.39881637]
[1625194343728,1.0,2089.9,2088.5,0.14147284]
[1625194344129,1.0,2089.9,2088.4,0.14147257]
[1625194344581,45.7397,2089.9,2088.4,0.14147257]
[1625194344684,2.20527,2089.4,2089.3,2.20527]
[1625194344783,5.19247,2089.4,2089.3,2.20527]
[1625194345334,5.19247,2089.4,2087.9,84.1647]
[1625194345434,1.0,2089.3,2087.9,84.1647]
[1625194345535,5.19247,2089.4,2087.9,84.1647]
[1625194345646,5.19247,2089.4,2088.0,0.1415098]
[1625194346439,5.19247,2089.4,2088.1,17.33]
[1625194346641,5.19247,2089.4,2089.1,2.20527]
[1625194348708,2.20527,2089.2,2089.1,2.20527]
[1625194352768,2.20527,2089.4,2089.1,2.20527]
[1625194352870,2.20527,2089.4,2089.1,5.63107]
[1625194353568,1.0,2090.5,2089.1,5.63107]
[1625194354271,1.0,2090.5,2089.2,17.3]
[1625194354672,2.20527,2090.1,2090.0,2.20527]
[1625194354823,2.20527,2090.1,2090.0,4.91827]
[1625194355924,2.20527,2090.1,2090.0,2.713]
[1625194356023,2.20527,2090.1,2089.8,2.20527]
[1625194356675,2.20527,2089.9,2089.8,2.20527]
[1625194359185,2.20527,2089.9,2089.5,2.20527]
[1625194359489,4.93957,2089.9,2089.5,2.20527]
[1625194360693,2.20527,2089.6,2089.5,2.20527]
[1625194361764,2.20527,2089.9,2089.5,2.20527]
[1625194362715,2.20527,2089.9,2089.8,2.20527]
[1625194368837,60.19557,2089.9,2089.8,2.20527]
[1625194373308,2.20527,2089.9,2089.8,2.20527]
[1625194374411,50.24697,2089.9,2089.8,2.20527]
[1625194374663,2.20527,2089.9,2089.8,2.20527]
[1625194375168,60.85257,2089.9,2089.8,2.20527]
[1625194376167,2.20527,2089.9,2089.8,2.20527]
[1625194381078,61.28187,2089.9,2089.8,2.20527]
[1625194381627,61.28187,2089.9,2089.1,48.8066]
[1625194381729,2.20527,2089.9,2089.1,48.8066]
[1625194382132,2.20527,2089.9,2089.2,0.14148862]
[1625194382228,55.11367,2089.9,2089.2,0.14148862]
[1625194382884,2.20527,2089.5,2089.4,2.20527]
[1625194383634,5.77657,2089.5,2088.8,1.4054991]
[1625194383885,5.77657,2089.5,2088.5,1.40633984]
[1625194384137,47.608,2088.6,2088.5,1.40633984]
[1625194384235,2.3211,2088.6,2088.5,1.40633984]
[1625194384338,2.3211,2088.6,2088.4,1.40648437]
[1625194384436,2.3211,2088.6,2088.5,0.14153931]
[1625194384940,6.73164,2088.6,2088.5,0.14153931]
[1625194392268,6.73164,2088.6,2088.1,1.40822174]
[1625194392872,6.73164,2088.6,2087.9,1.40842352]
[1625194393021,4.41054,2088.0,2087.9,1.40842352]
[1625194393122,4.41054,2088.0,2087.5,1.40800526]
[1625194393123,52.66844,2088.0,2087.5,1.40800526]
[1625194393426,52.66844,2088.0,2087.6,0.14160754]
[1625194394174,52.66844,2088.0,2087.5,0.14161793]
[1625194394577,52.66844,2088.0,2087.4,0.14161976]
[1625194394876,52.66844,2088.0,2087.1,2.20527]
[1625194394975,4.41054,2087.5,2087.1,2.20527]
[1625194395076,7.46884,2087.5,2087.1,2.20527]
[1625194395328,7.46884,2087.5,2087.2,0.14163365]
[1625194395680,7.46884,2087.5,2086.9,3.61271609]
[1625194395681,7.46884,2087.5,2087.0,0.14163497]
[1625194396478,7.46884,2087.5,2086.9,3.61271609]
[1625194396628,59.8753,2087.1,2086.9,3.61271609]
[1625194396829,7.46884,2087.5,2086.9,3.61271609]
[1625194396931,3.0583,2087.5,2087.0,0.14162859]
[1625194397030,1.0,2088.0,2087.0,0.14162859]
[1625194397133,92.0217,2088.4,2087.0,0.14162859]
[1625194397280,93.0217,2088.4,2087.0,0.84976043]
[1625194397382,92.0217,2088.4,2087.0,0.84976043]
[1625194397481,92.0217,2088.4,2087.0,2.25597188]
[1625194397632,92.0217,2088.4,2087.1,49.7024]
[1625194397835,92.0217,2088.4,2087.1,51.1085852]
[1625194397931,92.0217,2088.4,2087.1,1.4061852]
[1625194398034,92.0217,2088.4,2087.2,0.14161227]
[1625194398632,48.9576,2087.7,2087.2,0.14161227]
[1625194398731,48.9576,2087.7,2087.1,0.14162135]
[1625194399031,2.20527,2087.2,2087.1,0.14162135]
[1625194399131,2.20527,2087.2,2086.9,3.61144831]
[1625194399132,2.20527,2087.2,2087.0,0.84971136]
[1625194399431,2.20527,2087.2,2087.0,2.25499911]
[1625194399835,2.20527,2087.2,2087.1,0.1416114]
[1625194400131,2.20527,2087.3,2087.1,0.1416114]
[1625194400231,2.20527,2087.3,2087.1,0.8496656]
[1625194400584,2.20527,2087.3,2087.1,0.1416114]
[1625194400985,4.41054,2087.3,2087.1,0.1416114]
[1625194401736,4.41054,2087.3,2087.0,0.14161164]
[1625194403245,4.41054,2087.3,2086.9,4.41054]
[1625194404047,42.7706,2087.1,2086.9,4.41054]
[1625194404748,4.41054,2087.3,2086.9,4.41054]
[1625194405049,2.20527,2087.0,2086.9,4.41054]
[1625194407364,2.20527,2087.3,2086.9,4.41054]
[1625194407455,2.20527,2087.3,2086.9,7.31394]
[1625194407705,2.20527,2087.3,2087.0,0.14160795]
[1625194408205,1.0,2087.8,2087.2,59.8003]
[1625194408355,76.6306,2088.9,2087.2,59.8003]
[1625194408606,1.0,2088.8,2087.2,59.8003]
[1625194409022,2.20527,2087.8,2087.7,2.20527]
[1625194409120,2.20527,2087.8,2087.7,5.49997]
[1625194409471,53.80537,2087.8,2087.7,5.49997]
[1625194409929,2.20527,2087.8,2087.7,5.49997]
[1625194411133,4.41054,2087.8,2087.7,5.49997]
[1625194415396,1.0,2088.4,2087.7,5.49997]
[1625194415496,76.6306,2088.9,2087.7,5.49997]
[1625194417098,2.20527,2088.3,2088.1,2.20527]
[1625194418709,7e-05,2088.3,2088.1,2.20527]
[1625194418860,2.20527,2088.5,2088.1,2.20527]
[1625194419210,2.20527,2088.5,2088.4,3.16117]
[1625194419311,2.20527,2088.5,2088.4,6.57157]
[1625194419413,2.20527,2088.9,2088.4,6.57157]
[1625194420262,1.0,2089.8,2088.6,51.1852]
[1625194420378,15.2677,2089.9,2088.6,51.1852]
[1625194420764,15.2677,2089.9,2088.4,6.57157]
[1625194420915,15.2677,2089.9,2088.4,5.61567]
[1625194421014,15.2677,2089.9,2088.4,2.20527]
[1625194421114,1.0,2089.8,2089.2,2.20527]
[1625194421215,2.20527,2089.3,2089.2,2.20527]
[1625194421313,53.72037,2089.3,2089.2,2.20527]
[1625194421816,53.72037,2089.3,2088.0,41.8328]
[1625194422015,54.72037,2089.3,2088.0,41.8328]
[1625194422785,53.72037,2089.3,2088.0,41.8328]
[1625194423134,55.92564,2089.3,2089.0,2.20527]
[1625194426742,55.92564,2089.3,2088.8,2.20527]
[1625194427240,55.92564,2089.3,2088.8,4.41054]
[1625194428640,55.92564,2089.3,2088.8,2.20527]
[1625194428740,55.92564,2089.3,2087.6,1.9475]
[1625194428841,55.92564,2089.3,2087.6,0.9475]
[1625194428842,56.92564,2089.3,2087.6,0.9475]
[1625194429192,2.20527,2088.5,2088.4,2.20527]
[1625194430946,51.7028,2088.9,2088.4,2.20527]
[1625194431245,2.20527,2088.8,2088.7,2.20527]
[1625194437112,51.7028,2088.9,2088.7,2.20527]
[1625194437463,2.20527,2089.0,2088.7,2.20527]
[1625194437564,2.20527,2089.0,2088.7,5.47877]
[1625194438067,42.2938,2088.8,2088.7,5.47877]
[1625194438314,2.20527,2089.0,2088.7,5.47877]
[1625194439264,2.20527,2089.0,2088.8,2.20527]
[1625194439363,40.2013,2088.9,2088.8,2.20527]
[1625194440116,40.2013,2088.9,2088.0,3.6376]
[1625194440216,40.2013,2088.9,2087.8,41.0636]
[1625194440217,43.7918,2088.9,2087.8,41.0636]
[1625194441266,2.20527,2088.3,2088.2,2.20527]
[1625194442678,5.26447,2088.3,2088.2,2.20527]
[1625194443278,7.46974,2088.3,2088.2,2.20527]
[1625194446140,4.41054,2088.3,2088.2,2.20527]
[1625194446792,1.0,2089.5,2088.2,2.20527]
[1625194446892,1.95059077,2090.0,2088.2,5.29647]
[1625194446994,2.95059077,2090.0,2088.2,5.29647]
[1625194447147,17.66097912,2089.9,2088.2,5.29647]
[1625194447245,17.66097912,2089.9,2088.3,17.5]
[1625194447246,16.2677,2089.9,2088.3,17.5]
[1625194447346,2.20527,2089.0,2088.9,2.20527]
[1625194447446,2.20527,2089.0,2088.9,4.86497]
[1625194448163,2.20527,2089.0,2088.9,45.84057]
[1625194449015,7e-05,2089.0,2088.9,45.84057]
[1625194449117,1.0,2089.8,2088.9,45.84057]
[1625194449221,15.2677,2089.9,2088.9,45.84057]
[1625194449369,2.20527,2089.9,2089.8,2.20527]
[1625194449468,2.20527,2089.9,2089.8,4.80887]
[1625194450823,2.20527,2089.9,2089.8,2.20527]
[1625194450923,53.13987,2089.9,2089.8,2.20527]
[1625194451174,2.20527,2089.9,2089.8,2.20527]
[1625194453341,60.00377,2089.9,2089.8,2.20527]
[1625194456501,63.39867,2089.9,2088.5,1.0]
[1625194456602,63.39867,2089.9,2088.1,2.36719691]
[1625194456853,63.39867,2089.9,2088.1,0.963]
[1625194456958,63.39867,2089.9,2088.0,1.40426242]
[1625194457055,64.35157,2089.9,2088.0,1.40426242]